[Event "*** Titled Tuesday Blitz"]
[Site "Chess.com"]
[Date "2018.06.05"]
[Round "10"]
[White "ChessMavenYeti"]
[Black "Xeniya2005"]
[Result "1-0"]
[WhiteElo "2146"]
[BlackElo "1935"]
[TimeControl "180+2"]
[EndTime "15:21:26 PDT"]
[Termination "ChessMavenYeti won by resignation"]

1. Nf3 {[%clk 0:02:51.3]} 1... Nf6 {[%clk 0:03:00.2]} 2. g3 {[%clk 0:02:51.5]}
2... g6 {[%clk 0:03:01.3]} 3. Bg2 {[%clk 0:02:53]} 3... Bg7 {[%clk 0:03:02.8]}
4. O-O {[%clk 0:02:54.3]} 4... O-O {[%clk 0:03:04.3]} 5. d4 {[%clk 0:02:54.8]}
5... d5 {[%clk 0:03:05.7]} 6. c4 {[%clk 0:02:55.5]} 6... Nc6 {[%clk 0:03:06.9]}
7. cxd5 {[%clk 0:02:54.7]} 7... Nxd5 {[%clk 0:03:07.6]} 8. b3 {[%clk 0:02:45.2]}
8... Bg4 {[%clk 0:03:03.1]} 9. Bb2 {[%clk 0:02:45.3]} 9... Nb6 {[%clk
0:02:57.6]} 10. e3 {[%clk 0:02:44.1]} 10... e6 {[%clk 0:02:54.5]} 11. h3 {[%clk
0:02:44.9]} 11... Bxf3 {[%clk 0:02:53.9]} 12. Qxf3 {[%clk 0:02:44.7]} 12... Qd7
{[%clk 0:02:54.6]} 13. Nd2 {[%clk 0:02:43.4]} 13... Rae8 {[%clk 0:02:52.1]} 14.
Ne4 {[%clk 0:02:43.9]} 14... Qc8 {[%clk 0:02:39.9]} 15. Nf6+ {[%clk 0:02:44]}
15... Bxf6 {[%clk 0:02:40]} 16. Qxf6 {[%clk 0:02:45.4]} 16... Qd8 {[%clk
0:02:39]} 17. Qf4 {[%clk 0:02:39.3]} 17... Kg7 {[%clk 0:02:32.2]} 18. d5+ {[%clk
0:02:37.3]} 18... e5 {[%clk 0:02:30.8]} 19. dxc6 {[%clk 0:02:37.5]} 19... f6
{[%clk 0:02:28.1]} 20. Qb4 {[%clk 0:02:25.8]} 20... bxc6 {[%clk 0:02:27]} 21.
Bxc6 {[%clk 0:02:26]} 21... Re6 {[%clk 0:02:24.1]} 22. Rad1 {[%clk 0:02:25.7]}
22... Qc8 {[%clk 0:02:23.8]} 23. Bg2 {[%clk 0:02:13.8]} 23... Rfe8 {[%clk
0:02:20.5]} 24. Ba3 {[%clk 0:02:07.2]} 24... c6 {[%clk 0:02:13.3]} 25. Rc1
{[%clk 0:02:02.6]} 25... Qb7 {[%clk 0:02:12.1]} 26. Rfd1 {[%clk 0:02:01.3]}
26... e4 {[%clk 0:02:10.8]} 27. Rd4 {[%clk 0:01:53.2]} 27... f5 {[%clk
0:02:01.6]} 28. Bb2 {[%clk 0:01:51]} 28... Kg8 {[%clk 0:02:01.5]} 29. Rd6 {[%clk
0:01:47.4]} 29... Rxd6 {[%clk 0:01:55.9]} 30. Qxd6 {[%clk 0:01:48.1]} 30... Nd5
{[%clk 0:01:44.5]} 31. Rxc6 {[%clk 0:01:43.8]} 31... Qf7 {[%clk 0:01:44.4]} 32.
Bf1 {[%clk 0:01:40.5]} 1-0

[Event "*** Titled Tuesday Blitz"]
[Site "Chess.com"]
[Date "2018.06.05"]
[Round "10"]
[White "Gvalch"]
[Black "florianschwabeneder"]
[Result "0-1"]
[WhiteElo "2576"]
[BlackElo "2395"]
[TimeControl "180+2"]
[EndTime "15:22:09 PDT"]
[Termination "florianschwabeneder won by resignation"]

1. d4 {[%clk 0:03:01.9]} 1... c5 {[%clk 0:02:59.6]} 2. d5 {[%clk 0:03:02.6]}
2... Nf6 {[%clk 0:03:00.7]} 3. c4 {[%clk 0:03:04]} 3... e5 {[%clk 0:03:01.5]} 4.
Nc3 {[%clk 0:03:05.6]} 4... d6 {[%clk 0:03:02.7]} 5. e4 {[%clk 0:03:06.5]} 5...
Nbd7 {[%clk 0:03:04]} 6. g3 {[%clk 0:03:08]} 6... h5 {[%clk 0:03:03.3]} 7. h3
{[%clk 0:02:59.9]} 7... h4 {[%clk 0:03:03.8]} 8. Bg2 {[%clk 0:02:47.2]} 8... Be7
{[%clk 0:03:04.9]} 9. Nge2 {[%clk 0:02:47.8]} 9... Nf8 {[%clk 0:03:05.6]} 10.
Bg5 {[%clk 0:02:45.3]} 10... Ng6 {[%clk 0:03:05.8]} 11. Qd2 {[%clk 0:02:41.6]}
11... Nh5 {[%clk 0:03:05]} 12. Be3 {[%clk 0:02:39.4]} 12... a6 {[%clk 0:03:05]}
13. Bf3 {[%clk 0:02:28.5]} 13... Nf6 {[%clk 0:03:03.5]} 14. Bg2 {[%clk
0:02:07.2]} 14... Bd7 {[%clk 0:03:04.4]} 15. O-O-O {[%clk 0:01:58.4]} 15... b5
{[%clk 0:03:04.6]} 16. Rde1 {[%clk 0:01:32.9]} 16... Qa5 {[%clk 0:03:03.5]} 17.
Kb1 {[%clk 0:01:28.1]} 17... bxc4 {[%clk 0:03:03.9]} 18. g4 {[%clk 0:01:16.1]}
18... Nh7 {[%clk 0:03:04]} 19. f4 {[%clk 0:01:17.1]} 19... exf4 {[%clk
0:03:04.4]} 20. Nxf4 {[%clk 0:01:18.3]} 20... Ne5 {[%clk 0:03:04.2]} 21. Nh5
{[%clk 0:01:19.5]} 21... g6 {[%clk 0:03:01.8]} 22. Nf4 {[%clk 0:01:19.1]} 22...
Rb8 {[%clk 0:02:56.9]} 23. Rhf1 {[%clk 0:01:17.8]} 23... O-O {[%clk 0:02:56]}
24. Rf2 {[%clk 0:01:14.4]} 24... Bf6 {[%clk 0:02:55.4]} 25. Ka1 {[%clk
0:01:12.3]} 25... Bg7 {[%clk 0:02:55.7]} 26. Ref1 {[%clk 0:01:12.9]} 26... Rb7
{[%clk 0:02:56.2]} 27. g5 {[%clk 0:01:04.3]} 27... Rfb8 {[%clk 0:02:55.9]} 28.
Nfe2 {[%clk 0:00:48]} 28... Rxb2 {[%clk 0:02:49.7]} 29. Qxb2 {[%clk 0:00:46.7]}
29... Rxb2 {[%clk 0:02:50.7]} 30. Kxb2 {[%clk 0:00:47.9]} 30... Nd3+ {[%clk
0:02:52]} 31. Kc2 {[%clk 0:00:46.9]} 31... Ba4+ {[%clk 0:02:53]} 32. Kd2 {[%clk
0:00:47.2]} 32... Nxf2 {[%clk 0:02:52.1]} 33. Rxf2 {[%clk 0:00:49.1]} 33... Bd7
{[%clk 0:02:47.6]} 34. Rf1 {[%clk 0:00:48.1]} 34... Qd8 {[%clk 0:02:42.5]} 35.
e5 {[%clk 0:00:35.4]} 35... Bxe5 {[%clk 0:02:42.4]} 36. Ne4 {[%clk 0:00:36.8]}
36... Qa5+ {[%clk 0:02:42.4]} 37. N2c3 {[%clk 0:00:37.5]} 37... Bf5 {[%clk
0:02:42.5]} 38. Bf3 {[%clk 0:00:30.6]} 38... Bxe4 {[%clk 0:02:42.9]} 0-1

[Event "*** Titled Tuesday Blitz"]
[Site "Chess.com"]
[Date "2018.06.05"]
[Round "10"]
[White "Raja3401"]
[Black "JaimeSantosLatasa"]
[Result "0-1"]
[WhiteElo "2411"]
[BlackElo "2675"]
[TimeControl "180+2"]
[EndTime "15:22:28 PDT"]
[Termination "JaimeSantosLatasa won by resignation"]

1. e4 {[%clk 0:03:01.9]} 1... c5 {[%clk 0:02:57.8]} 2. Nf3 {[%clk 0:03:02.4]}
2... d6 {[%clk 0:02:56.4]} 3. d4 {[%clk 0:03:03.2]} 3... cxd4 {[%clk 0:02:56.3]}
4. Nxd4 {[%clk 0:03:05.1]} 4... Nf6 {[%clk 0:02:56.3]} 5. Nc3 {[%clk 0:03:06.1]}
5... a6 {[%clk 0:02:57.2]} 6. Bg5 {[%clk 0:03:06.8]} 6... e6 {[%clk 0:02:58.1]}
7. f4 {[%clk 0:03:02.7]} 7... Qb6 {[%clk 0:02:58.7]} 8. Qd2 {[%clk 0:03:01.7]}
8... Nc6 {[%clk 0:02:54.8]} 9. Nb3 {[%clk 0:02:10.2]} 9... Ng4 {[%clk 0:02:49]}
10. O-O-O {[%clk 0:01:23.9]} 10... Nf2 {[%clk 0:02:42.2]} 11. Na4 {[%clk
0:01:20.4]} 11... Qa7 {[%clk 0:02:38.4]} 12. Bd3 {[%clk 0:01:01.5]} 12... b5
{[%clk 0:02:35.7]} 13. Nc3 {[%clk 0:00:53.8]} 13... Nxh1 {[%clk 0:02:34.4]} 14.
Rxh1 {[%clk 0:00:55.7]} 14... Be7 {[%clk 0:02:30.9]} 15. h4 {[%clk 0:00:54.6]}
15... f6 {[%clk 0:02:26.3]} 16. Qe2 {[%clk 0:00:43.4]} 16... fxg5 {[%clk
0:02:18.8]} 17. hxg5 {[%clk 0:00:45.3]} 17... b4 {[%clk 0:02:15.1]} 18. Nd5
{[%clk 0:00:43.8]} 18... exd5 {[%clk 0:02:11.1]} 19. exd5 {[%clk 0:00:45.7]}
19... Nd4 {[%clk 0:02:11.8]} 20. Qh5+ {[%clk 0:00:15.7]} 20... Kd8 {[%clk
0:02:03.8]} 21. Re1 {[%clk 0:00:14.6]} 21... Nxb3+ {[%clk 0:01:59.2]} 22. axb3
{[%clk 0:00:15.3]} 22... Qf2 {[%clk 0:01:54.3]} 23. Re4 {[%clk 0:00:12.9]} 23...
Bf5 {[%clk 0:01:45]} 24. Rxe7 {[%clk 0:00:08.3]} 24... Kxe7 {[%clk 0:01:39.1]}
0-1

[Event "*** Titled Tuesday Blitz"]
[Site "Chess.com"]
[Date "2018.06.05"]
[Round "10"]
[White "Sanan_Sjugirov"]
[Black "dretch"]
[Result "1-0"]
[WhiteElo "2729"]
[BlackElo "2745"]
[TimeControl "180+2"]
[EndTime "15:22:45 PDT"]
[Termination "Sanan_Sjugirov won on time"]

1. e4 {[%clk 0:03:01.9]} 1... e6 {[%clk 0:03:00.9]} 2. d4 {[%clk 0:03:01.8]}
2... d5 {[%clk 0:03:02.1]} 3. Nd2 {[%clk 0:03:03.3]} 3... c5 {[%clk 0:02:56.2]}
4. Ngf3 {[%clk 0:03:03]} 4... cxd4 {[%clk 0:02:56.2]} 5. exd5 {[%clk 0:03:03.8]}
5... Qxd5 {[%clk 0:02:56]} 6. Bc4 {[%clk 0:03:05.2]} 6... Qd6 {[%clk 0:02:57]}
7. O-O {[%clk 0:03:06.6]} 7... Nf6 {[%clk 0:02:58.2]} 8. Nb3 {[%clk 0:03:07.8]}
8... Nc6 {[%clk 0:02:59.5]} 9. Nbxd4 {[%clk 0:03:09.4]} 9... Nxd4 {[%clk
0:02:59.7]} 10. Nxd4 {[%clk 0:03:11.3]} 10... a6 {[%clk 0:03:00.9]} 11. Re1
{[%clk 0:03:08.6]} 11... Qc7 {[%clk 0:03:00.2]} 12. Qe2 {[%clk 0:03:09.3]} 12...
Bd6 {[%clk 0:02:58.3]} 13. Bg5 {[%clk 0:03:08.8]} 13... O-O {[%clk 0:02:54.1]}
14. Bxf6 {[%clk 0:03:06.3]} 14... gxf6 {[%clk 0:02:55.2]} 15. Bd3 {[%clk
0:03:04.5]} 15... f5 {[%clk 0:02:52.4]} 16. Qh5 {[%clk 0:02:53.4]} 16... Kh8
{[%clk 0:01:44.5]} 17. Nf3 {[%clk 0:02:35.5]} 17... f6 {[%clk 0:01:21.5]} 18.
Rad1 {[%clk 0:02:22.1]} 18... Bc5 {[%clk 0:01:20.5]} 19. c3 {[%clk 0:02:10]}
19... Qg7 {[%clk 0:00:48.5]} 20. Nd4 {[%clk 0:02:01.9]} 20... Bxd4 {[%clk
0:00:34.1]} 21. cxd4 {[%clk 0:02:03.8]} 21... Bd7 {[%clk 0:00:35.4]} 22. d5
{[%clk 0:01:48.5]} 22... exd5 {[%clk 0:00:20.9]} 23. Bxf5 {[%clk 0:01:49.3]}
23... Bc6 {[%clk 0:00:15.5]} 24. Re3 {[%clk 0:01:46]} 24... Qf7 {[%clk
0:00:16.1]} 25. Qh4 {[%clk 0:01:43.8]} 25... Rg8 {[%clk 0:00:16.5]} 26. Be6
{[%clk 0:01:39.4]} 26... Qg7 {[%clk 0:00:03.9]} 27. Rg3 {[%clk 0:01:36.9]} 1-0

[Event "*** Titled Tuesday Blitz"]
[Site "Chess.com"]
[Date "2018.06.05"]
[Round "10"]
[White "lucasmito"]
[Black "Flawless2018"]
[Result "0-1"]
[WhiteElo "2329"]
[BlackElo "2485"]
[TimeControl "180+2"]
[EndTime "15:22:55 PDT"]
[Termination "Flawless2018 won on time"]

1. e4 {[%clk 0:02:48.5]} 1... e5 {[%clk 0:03:00]} 2. f4 {[%clk 0:02:48.5]} 2...
exf4 {[%clk 0:03:01.9]} 3. Nf3 {[%clk 0:02:49.9]} 3... g5 {[%clk 0:03:01.5]} 4.
h4 {[%clk 0:02:50.5]} 4... g4 {[%clk 0:03:02.2]} 5. Ng5 {[%clk 0:02:52.4]} 5...
h6 {[%clk 0:02:51.2]} 6. Nxf7 {[%clk 0:02:52.1]} 6... Kxf7 {[%clk 0:02:53.1]} 7.
Bc4+ {[%clk 0:02:52.5]} 7... d5 {[%clk 0:02:48.1]} 8. Bxd5+ {[%clk 0:02:53.8]}
8... Ke8 {[%clk 0:02:47.2]} 9. d4 {[%clk 0:02:54.3]} 9... Nf6 {[%clk 0:02:42.7]}
10. Nc3 {[%clk 0:02:53.1]} 10... f3 {[%clk 0:02:41.4]} 11. O-O {[%clk
0:02:41.3]} 11... c6 {[%clk 0:02:36.1]} 12. Bb3 {[%clk 0:02:39.7]} 12... Nh5
{[%clk 0:02:35.6]} 13. gxf3 {[%clk 0:02:19.1]} 13... Qxh4 {[%clk 0:02:35.1]} 14.
Qe1 {[%clk 0:01:57.4]} 14... g3 {[%clk 0:02:33.7]} 15. Qe2 {[%clk 0:01:52.2]}
15... Rg8 {[%clk 0:02:28.5]} 16. Bxg8 {[%clk 0:01:48.8]} 16... Na6 {[%clk
0:02:26]} 17. Bb3 {[%clk 0:01:40.6]} 17... Bh3 {[%clk 0:02:20.1]} 18. Re1 {[%clk
0:01:31.5]} 18... Kd7 {[%clk 0:02:04.8]} 19. d5 {[%clk 0:01:27.6]} 19... Bc5+
{[%clk 0:01:59.7]} 20. Be3 {[%clk 0:01:26]} 20... Bxe3+ {[%clk 0:01:54]} 21.
Qxe3 {[%clk 0:01:27.9]} 21... Bg2 {[%clk 0:01:55.1]} 22. dxc6+ {[%clk
0:01:25.6]} 22... Kxc6 {[%clk 0:01:48.2]} 23. Qxh6+ {[%clk 0:00:49.3]} 23... Kc5
{[%clk 0:01:48]} 24. Na4+ {[%clk 0:00:45.2]} 24... Kb5 {[%clk 0:01:46.6]} 25.
c4+ {[%clk 0:00:29.4]} 25... Ka5 {[%clk 0:01:41.1]} 26. Qd2+ {[%clk 0:00:29.1]}
26... Nb4 {[%clk 0:01:40.4]} 27. Qxg2 {[%clk 0:00:30.1]} 27... Nf4 {[%clk
0:01:34.4]} 0-1

[Event "*** Titled Tuesday Blitz"]
[Site "Chess.com"]
[Date "2018.06.05"]
[Round "10"]
[White "Jooonaaas1996"]
[Black "11kevin"]
[Result "0-1"]
[WhiteElo "2287"]
[BlackElo "2263"]
[TimeControl "180+2"]
[EndTime "15:23:01 PDT"]
[Termination "11kevin won on time"]

1. e4 {[%clk 0:00:58.8]} 1... c6 {[%clk 0:02:11.2]} 2. d4 {[%clk 0:00:58.5]}
2... d5 {[%clk 0:02:12.7]} 3. Nd2 {[%clk 0:00:59.3]} 3... dxe4 {[%clk
0:02:13.5]} 4. Nxe4 {[%clk 0:01:01.2]} 4... Bf5 {[%clk 0:02:14.3]} 5. Ng3 {[%clk
0:01:02]} 5... Bg6 {[%clk 0:02:15.5]} 6. Nh3 {[%clk 0:01:03.3]} 6... e6 {[%clk
0:02:14.4]} 7. Nf4 {[%clk 0:01:01.8]} 7... Bd6 {[%clk 0:02:15]} 8. Nxg6 {[%clk
0:01:01.4]} 8... hxg6 {[%clk 0:02:15.3]} 9. Ne4 {[%clk 0:01:02.9]} 9... Nf6
{[%clk 0:02:15.3]} 10. Nxd6+ {[%clk 0:01:00.8]} 10... Qxd6 {[%clk 0:02:15.4]}
11. g3 {[%clk 0:01:02.2]} 11... Qd5 {[%clk 0:02:12.6]} 12. Rg1 {[%clk
0:01:01.4]} 12... Rxh2 {[%clk 0:02:11.6]} 13. Be3 {[%clk 0:00:55.3]} 13... Nbd7
{[%clk 0:02:11.5]} 14. Qd2 {[%clk 0:00:51.4]} 14... O-O-O {[%clk 0:02:11.6]} 15.
c4 {[%clk 0:00:50.3]} 15... Qh5 {[%clk 0:01:56.2]} 16. Be2 {[%clk 0:00:50.2]}
16... Ne4 {[%clk 0:01:49.7]} 17. Bxh5 {[%clk 0:00:21.4]} 17... Nxd2 {[%clk
0:01:49.7]} 18. Be2 {[%clk 0:00:23.3]} 18... Ne4 {[%clk 0:01:47.4]} 19. Bf3
{[%clk 0:00:21.4]} 19... Ndf6 {[%clk 0:01:46.8]} 20. Rh1 {[%clk 0:00:20.4]}
20... Rdh8 {[%clk 0:01:43.5]} 21. Rxh2 {[%clk 0:00:21.1]} 21... Rxh2 {[%clk
0:01:43.2]} 22. Ke2 {[%clk 0:00:18.4]} 22... Nxg3+ {[%clk 0:01:44]} 23. Kd3
{[%clk 0:00:19.3]} 23... Nf5 {[%clk 0:01:44.5]} 24. d5 {[%clk 0:00:19]} 24...
Nxe3 {[%clk 0:01:43.5]} 25. fxe3 {[%clk 0:00:19.8]} 25... cxd5 {[%clk
0:01:44.5]} 26. cxd5 {[%clk 0:00:20.5]} 26... exd5 {[%clk 0:01:45.7]} 27. Rc1+
{[%clk 0:00:20.3]} 27... Kd7 {[%clk 0:01:46.7]} 28. Rc5 {[%clk 0:00:21]} 28...
Rxb2 {[%clk 0:01:45.9]} 29. Bxd5 {[%clk 0:00:21.6]} 29... Kd6 {[%clk 0:01:47]}
30. Ra5 {[%clk 0:00:17.9]} 30... Nxd5 {[%clk 0:01:47.2]} 0-1

[Event "*** Titled Tuesday Blitz"]
[Site "Chess.com"]
[Date "2018.06.05"]
[Round "10"]
[White "nochewycandy"]
[Black "CarlssonLudvig"]
[Result "1-0"]
[WhiteElo "2159"]
[BlackElo "2088"]
[TimeControl "180+2"]
[EndTime "15:23:26 PDT"]
[Termination "nochewycandy won on time"]

1. e4 {[%clk 0:03:01.9]} 1... c5 {[%clk 0:02:59.6]} 2. Nf3 {[%clk 0:03:02.7]}
2... e6 {[%clk 0:03:00.7]} 3. d3 {[%clk 0:03:03.2]} 3... Nc6 {[%clk 0:02:57.4]}
4. g3 {[%clk 0:03:03.8]} 4... d5 {[%clk 0:02:58.8]} 5. Nbd2 {[%clk 0:03:00]}
5... Bd6 {[%clk 0:02:47]} 6. Bg2 {[%clk 0:02:59.9]} 6... Nge7 {[%clk 0:02:46.8]}
7. O-O {[%clk 0:03:00]} 7... O-O {[%clk 0:02:47.8]} 8. Re1 {[%clk 0:02:59.1]}
8... f6 {[%clk 0:02:48.5]} 9. exd5 {[%clk 0:02:58.6]} 9... exd5 {[%clk 0:02:46]}
10. Nf1 {[%clk 0:02:57.5]} 10... Bf5 {[%clk 0:02:13.5]} 11. Nh4 {[%clk 0:02:53]}
11... Bd7 {[%clk 0:02:12.2]} 12. Ne3 {[%clk 0:02:52.9]} 12... d4 {[%clk
0:02:13.4]} 13. Nc4 {[%clk 0:02:52.5]} 13... Bc7 {[%clk 0:02:13.4]} 14. a4
{[%clk 0:02:53.5]} 14... Nf5 {[%clk 0:02:05.2]} 15. Nxf5 {[%clk 0:02:48.9]}
15... Bxf5 {[%clk 0:02:07.1]} 16. Qh5 {[%clk 0:02:50]} 16... Qd7 {[%clk
0:01:58.2]} 17. Bd2 {[%clk 0:02:43.7]} 17... Rae8 {[%clk 0:01:55]} 18. Bd5+
{[%clk 0:02:29.3]} 18... Kh8 {[%clk 0:01:47.5]} 19. Bxc6 {[%clk 0:02:12.4]}
19... bxc6 {[%clk 0:01:48.4]} 20. b4 {[%clk 0:01:55.5]} 20... Rxe1+ {[%clk
0:00:40.4]} 21. Rxe1 {[%clk 0:01:54.7]} 21... Bd8 {[%clk 0:00:20.9]} 22. bxc5
{[%clk 0:01:35]} 22... Bg4 {[%clk 0:00:21.9]} 23. Qh4 {[%clk 0:01:21.9]} 23...
Bh3 {[%clk 0:00:18.8]} 24. Qe4 {[%clk 0:01:19]} 24... f5 {[%clk 0:00:07.6]} 25.
Qe6 {[%clk 0:01:11.3]} 25... Qc7 {[%clk 0:00:03.2]} 26. Bf4 {[%clk 0:01:08.9]}
26... Qb7 {[%clk 0:00:04.1]} 27. Ne5 {[%clk 0:01:03.1]} 27... Qb2 {[%clk
0:00:02.9]} 28. Nf7+ {[%clk 0:01:02.4]} 1-0

[Event "*** Titled Tuesday Blitz"]
[Site "Chess.com"]
[Date "2018.06.05"]
[Round "10"]
[White "NikolaGry"]
[Black "ChessWarrior7197"]
[Result "0-1"]
[WhiteElo "2599"]
[BlackElo "2691"]
[TimeControl "180+2"]
[EndTime "15:23:44 PDT"]
[Termination "ChessWarrior7197 won on time"]

1. e4 {[%clk 0:03:01.9]} 1... e5 {[%clk 0:02:59.9]} 2. Nf3 {[%clk 0:03:01.8]}
2... Nc6 {[%clk 0:03:01.4]} 3. c3 {[%clk 0:02:58.3]} 3... d6 {[%clk 0:02:57.3]}
4. d4 {[%clk 0:02:58.5]} 4... Nf6 {[%clk 0:02:58.6]} 5. dxe5 {[%clk 0:02:57.5]}
5... Nxe5 {[%clk 0:02:59.3]} 6. Nxe5 {[%clk 0:02:56.1]} 6... dxe5 {[%clk
0:03:01.2]} 7. Qxd8+ {[%clk 0:02:56.2]} 7... Kxd8 {[%clk 0:03:03.1]} 8. f3
{[%clk 0:02:49.3]} 8... Be6 {[%clk 0:03:00.3]} 9. Be3 {[%clk 0:02:48.8]} 9...
Nd7 {[%clk 0:03:00.6]} 10. Nd2 {[%clk 0:02:47.3]} 10... Bc5 {[%clk 0:03:02]} 11.
Bxc5 {[%clk 0:02:47.4]} 11... Nxc5 {[%clk 0:03:03.9]} 12. Bc4 {[%clk 0:02:46.7]}
12... Ke7 {[%clk 0:03:05]} 13. Bxe6 {[%clk 0:02:43.3]} 13... Kxe6 {[%clk
0:03:06.9]} 14. Ke2 {[%clk 0:02:33.7]} 14... Rhd8 {[%clk 0:03:07.5]} 15. g3
{[%clk 0:01:38.5]} 15... Rd7 {[%clk 0:03:02.6]} 16. Rhd1 {[%clk 0:01:33.8]}
16... Rad8 {[%clk 0:03:01.9]} 17. Nc4 {[%clk 0:01:24.1]} 17... Na4 {[%clk
0:02:59]} 18. Rxd7 {[%clk 0:01:15.2]} 18... Rxd7 {[%clk 0:02:58.4]} 19. Rb1
{[%clk 0:00:26.2]} 19... h5 {[%clk 0:02:55.9]} 20. Ne3 {[%clk 0:00:24.3]} 20...
b5 {[%clk 0:02:53.5]} 21. Nd1 {[%clk 0:00:23.3]} 21... a6 {[%clk 0:02:49.5]} 22.
Rc1 {[%clk 0:00:24]} 22... g5 {[%clk 0:02:47.7]} 23. b3 {[%clk 0:00:23.1]} 23...
Nc5 {[%clk 0:02:46.3]} 24. Ne3 {[%clk 0:00:23.9]} 24... g4 {[%clk 0:02:41.8]}
25. Rd1 {[%clk 0:00:19.9]} 25... gxf3+ {[%clk 0:02:37.7]} 26. Kxf3 {[%clk
0:00:20.7]} 26... Rxd1 {[%clk 0:02:35.3]} 27. Nxd1 {[%clk 0:00:21.3]} 27... Nd3
{[%clk 0:02:37.2]} 28. h4 {[%clk 0:00:20.4]} 28... Nc1 {[%clk 0:02:38.1]} 29. g4
{[%clk 0:00:20.7]} 29... hxg4+ {[%clk 0:02:37.7]} 30. Kxg4 {[%clk 0:00:21.7]}
30... Nxa2 {[%clk 0:02:37.4]} 31. h5 {[%clk 0:00:22]} 31... Kf6 {[%clk
0:02:38.8]} 32. b4 {[%clk 0:00:18.5]} 32... Nc1 {[%clk 0:02:35.7]} 33. Ne3
{[%clk 0:00:18.6]} 33... c6 {[%clk 0:02:34.8]} 34. Kh4 {[%clk 0:00:18.2]} 34...
Ne2 {[%clk 0:02:32.5]} 35. Ng4+ {[%clk 0:00:18.8]} 35... Kg7 {[%clk 0:02:33.6]}
36. Kg5 {[%clk 0:00:19.7]} 36... Nxc3 {[%clk 0:02:34.4]} 37. h6+ {[%clk
0:00:20.4]} 37... Kh7 {[%clk 0:02:28.8]} 38. Kf5 {[%clk 0:00:20.3]} 38... Na2
{[%clk 0:02:21.7]} 39. Kxe5 {[%clk 0:00:18.9]} 39... Nxb4 {[%clk 0:02:22.9]} 40.
Kf6 {[%clk 0:00:20]} 40... a5 {[%clk 0:02:21.5]} 41. Kxf7 {[%clk 0:00:20.5]}
41... a4 {[%clk 0:02:22.8]} 42. e5 {[%clk 0:00:20.4]} 42... a3 {[%clk
0:02:22.8]} 43. e6 {[%clk 0:00:20.1]} 43... Nd5 {[%clk 0:02:23.1]} 44. Ne3
{[%clk 0:00:17.3]} 44... Nxe3 {[%clk 0:02:23.4]} 45. e7 {[%clk 0:00:17.7]} 45...
Nf5 {[%clk 0:02:24.6]} 46. Ke6 {[%clk 0:00:18.3]} 46... Nxe7 {[%clk 0:02:24.2]}
0-1

[Event "*** Titled Tuesday Blitz"]
[Site "Chess.com"]
[Date "2018.06.05"]
[Round "10"]
[White "ChrisTool2"]
[Black "LornerAcosta"]
[Result "0-1"]
[WhiteElo "2254"]
[BlackElo "2338"]
[TimeControl "180+2"]
[EndTime "15:24:03 PDT"]
[Termination "LornerAcosta won by resignation"]

1. d4 {[%clk 0:03:01.9]} 1... e6 {[%clk 0:03:01.9]} 2. c4 {[%clk 0:03:01.4]}
2... d5 {[%clk 0:03:03.2]} 3. Nf3 {[%clk 0:03:02.4]} 3... Nf6 {[%clk 0:03:04.6]}
4. Nc3 {[%clk 0:03:04]} 4... Be7 {[%clk 0:03:04.8]} 5. Bf4 {[%clk 0:03:04.1]}
5... O-O {[%clk 0:03:05.4]} 6. e3 {[%clk 0:03:05.2]} 6... c5 {[%clk 0:03:06.7]}
7. dxc5 {[%clk 0:03:06.2]} 7... Bxc5 {[%clk 0:03:07.4]} 8. Qc2 {[%clk
0:03:07.7]} 8... Nc6 {[%clk 0:03:07.2]} 9. O-O-O {[%clk 0:03:07.7]} 9... Qa5
{[%clk 0:03:06.6]} 10. g4 {[%clk 0:02:52.4]} 10... Nb4 {[%clk 0:02:57.1]} 11.
Qb3 {[%clk 0:02:52.3]} 11... dxc4 {[%clk 0:02:49.6]} 12. Bxc4 {[%clk 0:02:51.9]}
12... Nxg4 {[%clk 0:02:50.7]} 13. a3 {[%clk 0:02:47.6]} 13... Nxf2 {[%clk
0:02:40.9]} 14. axb4 {[%clk 0:02:42.1]} 14... Bxb4 {[%clk 0:02:42.8]} 15. Rhg1
{[%clk 0:02:22.9]} 15... Nxd1 {[%clk 0:02:41.2]} 16. Be5 {[%clk 0:01:49.6]}
16... f6 {[%clk 0:02:37.7]} 17. Bxe6+ {[%clk 0:01:48.5]} 17... Bxe6 {[%clk
0:02:38.4]} 18. Qxe6+ {[%clk 0:01:50.4]} 18... Kh8 {[%clk 0:02:37.6]} 19. Qd7
{[%clk 0:00:56.6]} 19... Qa1+ {[%clk 0:02:31]} 20. Nb1 {[%clk 0:00:48.2]} 20...
Rac8+ {[%clk 0:02:29.9]} 21. Bc3 {[%clk 0:00:45.5]} 21... Qxb2+ {[%clk
0:02:27.3]} 22. Kxd1 {[%clk 0:00:45.8]} 22... Qxb1+ {[%clk 0:02:17.5]} 23. Ke2
{[%clk 0:00:45.8]} 23... Qa2+ {[%clk 0:02:07.4]} 24. Nd2 {[%clk 0:00:40.3]}
24... Qf7 {[%clk 0:02:01.6]} 25. Qxf7 {[%clk 0:00:35.9]} 25... Rxf7 {[%clk
0:02:03.5]} 26. Bxb4 {[%clk 0:00:37.2]} 26... b6 {[%clk 0:02:04.8]} 27. Nf3
{[%clk 0:00:21.5]} 27... Rd7 {[%clk 0:02:03.6]} 28. Nd4 {[%clk 0:00:20.9]} 28...
a5 {[%clk 0:02:01.2]} 29. Bd2 {[%clk 0:00:20.1]} 29... h6 {[%clk 0:01:56.7]} 30.
h4 {[%clk 0:00:15.6]} 30... Rc5 {[%clk 0:01:57.2]} 31. Kf3 {[%clk 0:00:12.8]}
31... Re5 {[%clk 0:01:57.6]} 32. Bc3 {[%clk 0:00:12.2]} 32... Kh7 {[%clk
0:01:55.7]} 33. Ba1 {[%clk 0:00:11]} 33... Rh5 {[%clk 0:01:56.3]} 34. Rg4 {[%clk
0:00:05.9]} 34... b5 {[%clk 0:01:56.8]} 35. e4 {[%clk 0:00:04.8]} 35... Rc5
{[%clk 0:01:56]} 36. Ne6 {[%clk 0:00:02.9]} 36... Rc8 {[%clk 0:01:53.3]} 37. h5
{[%clk 0:00:02.1]} 37... b4 {[%clk 0:01:54.2]} 38. e5 {[%clk 0:00:03.3]} 38...
f5 {[%clk 0:01:51.4]} 39. Rg1 {[%clk 0:00:02.5]} 39... a4 {[%clk 0:01:52.6]} 40.
Kf4 {[%clk 0:00:03.8]} 40... b3 {[%clk 0:01:53.3]} 41. Kxf5 {[%clk 0:00:05]}
41... a3 {[%clk 0:01:54.7]} 42. Bd4 {[%clk 0:00:06]} 42... b2 {[%clk 0:01:55.7]}
43. Bxb2 {[%clk 0:00:06.7]} 43... axb2 {[%clk 0:01:56.6]} 44. Rb1 {[%clk
0:00:08.6]} 44... Rb7 {[%clk 0:01:57.4]} 45. Nf4 {[%clk 0:00:08.8]} 45... Rc1
{[%clk 0:01:58.8]} 46. Rxb2 {[%clk 0:00:06.2]} 46... Rxb2 {[%clk 0:02:00.7]} 47.
e6 {[%clk 0:00:07.1]} 47... Rf1 {[%clk 0:02:01.9]} 48. e7 {[%clk 0:00:07.9]}
48... Re2 {[%clk 0:02:03.3]} 49. Kg4 {[%clk 0:00:07.6]} 49... Rxf4+ {[%clk
0:02:04.3]} 50. Kxf4 {[%clk 0:00:06.2]} 50... Rxe7 {[%clk 0:02:06.2]} 51. Kf5
{[%clk 0:00:08.1]} 51... Rf7+ {[%clk 0:02:07.2]} 52. Kg4 {[%clk 0:00:08.1]}
52... Rf6 {[%clk 0:02:09.1]} 53. Kh4 {[%clk 0:00:08.5]} 53... Kg8 {[%clk
0:02:11]} 54. Kg4 {[%clk 0:00:09.8]} 54... Kf7 {[%clk 0:02:12.9]} 0-1